Cogmind - Beta 15 @@@ ROGUE MODE // 2025.09.01 @ 17:41:31 Player: odium reigns Result: Self-destructed Performance ------------- Evolutions (2) 1000 Regions Visited (5) 1000 Robots Destroyed (35) 175 Value Destroyed (673) 673 Prototype IDs (0) 0 Alien Tech Used (0) 0 Bonus (0) 0 TOTAL SCORE: 2848 Bonus ------- None Cogmind --------- Core Integrity 442/550 Matter 300/300 Energy 18/100 System Corruption 0% Temperature Warm (118) Movement Core (450) Ox8 Location -8/Materials Parts ------- > --- POWER (2) -------- (None) > --- PROPULSION (3) --- Airjet > --- UTILITY (3) ------ Sensor Array > --- WEAPON (3) ------- Heavy Ion Cannon Heavy Ion Cannon Heavy Ion Cannon > --- INVENTORY (5) ---- Medium Storage Unit Medium Matter Pod (100) Medium Armor Plating Improved Light Cannon Chainsword Peak State ------------ > --- POWER ------------ Light Nuclear Core Light Nuclear Core > --- PROPULSION ------- Aluminum Leg Airjet > --- UTILITY ---------- Light Humpback Sensor Array > --- WEAPON ----------- Beam Rifle Heavy Ion Cannon Heavy Ion Cannon > --- INVENTORY -------- Heat Sink Improved Heat Sink Medium Storage Unit Large Storage Unit Medium Battery Medium Matter Pod Medium Matter Pod Medium Matter Pod Large Matter Pod Medium Armor Plating Medium Armor Plating Corruption Screen Corruption Screen Corruption Screen Corruption Screen Beam Rifle Beam Rifle Heavy Ion Cannon Heavy Ion Cannon Improved Light Cannon Chainsword Chainsword Chainsword Chainsword [Rating: 29] Favorites ----------- Power Light Ion Engine Engine Light Ion Engine Power Core Light Nuclear Core Propulsion Aluminum Leg Treads Light Treads Leg Aluminum Leg Hover Unit Airjet Utility Sensor Array Device Sensor Array Storage Large Storage Unit Protection Medium Armor Plating Weapon Beam Rifle Energy Gun Beam Rifle Energy Cannon Heavy Ion Cannon Ballistic Gun Assault Rifle Ballistic Cannon Improved Light Cannon Build | -11 -10 -10 -10 -9 -8 ------- Run | Yrd Mat Min Exi Min Mat Slots Evolved 4 | . . . . . 4 Power 1 | . . . . . 1 Propulsion 1 | . . . . . 1 Utility 1 | . . . . . 1 Weapon 1 | . . . . . 1 Parts Attached 27 | 7 8 1 . 3 8 Power 4 | 1 . 1 . 1 1 Engine 2 | 1 . 1 . . . Core 2 | . . . . 1 1 Reactor . | . . . . . . Propulsion 8 | 2 3 . . 2 1 Treads 2 | . 2 . . . . Leg 5 | 2 1 . . 2 . Wheel . | . . . . . . Hover 1 | . . . . . 1 Flight . | . . . . . . Utility 6 | 2 3 . . . 1 Device 2 | 1 1 . . . . Storage 3 | 1 1 . . . 1 Processor . | . . . . . . Hackware . | . . . . . . Protection 1 | . 1 . . . . Artifact . | . . . . . . Weapon 9 | 2 2 . . . 5 Energy Gun 4 | 1 2 . . . 1 Energy Cannon 3 | . . . . . 3 Ballistic Gun 1 | 1 . . . . . Ballistic Cannon 1 | . . . . . 1 Launcher . | . . . . . . Special Weapon . | . . . . . . Impact Weapon . | . . . . . . Slashing Weapon . | . . . . . . Piercing Weapon . | . . . . . . Special Melee Weapon . | . . . . . . Unidentified Prototypes . | . . . . . . Parts Lost 7 | . . . . 3 4 Power 2 | . . . . . 2 Propulsion 3 | . . . . 2 1 Utility 1 | . . . . . 1 Weapon 1 | . . . . 1 . Highest Loss Streak 3 | . . . . 2 3 To Critical Strikes . | . . . . . . Average Backups 13 | 5 8 10 13 14 19 Power 1 | 2 2 1 1 1 . Propulsion . | 1 . . 1 . . Utility 8 | . 2 6 9 10 12 Weapon 2 | 1 2 3 2 2 5 Tool/Special . | . . . . . . Unused Backups 25 | . 3 . 1 1 20 Power 2 | . 1 . . 1 . Propulsion . | . . . . . . Utility 15 | . 1 . . . 14 Weapon 8 | . 1 . 1 . 6 Tool/Special . | . . . . . . Average Slot Usage (%) 88 | . 99 100 100 80 65 Engine 7 | . 14 14 14 . . Core 5 | . . . . 13 11 Treads 7 | . 14 14 14 . . Leg 13 | . 13 14 14 18 7 Device 12 | . 8 14 14 14 9 Storage 13 | . 14 14 14 14 9 Energy Gun 22 | . 24 28 28 18 10 Energy Cannon 1 | . . . . . 9 Ballistic Cannon 1 | . . . . . 6 Peak Build Rating 29 | 10 12 10 10 13 29 Average Rating 11 | 6 10 10 10 10 20 On Entrance 8 | . 9 10 10 10 10 Naked Turns . | . . . . . . Heaviest Build 66 | 13 30 30 30 32 66 Greatest Support 40 | 20 40 20 20 20 10 Greatest Overweight (x) 21 | 2 4 2 1 2 21 Average Overweight (x) 1 | . . 1 1 1 5 Largest Inventory Capacity 25 | 8 15 15 15 15 25 Average Capacity 15 | 7 9 15 15 15 22 Most Carried 25 | 8 11 11 15 15 25 Average Carried 14 | 5 8 10 14 14 19 Final Capacity 15 | 8 15 15 15 15 5 Final Carried 15 | 8 11 11 15 15 5 Class Distribution -------------------- 83% | Mutant 16% | Skirmisher Dominant Class ---------------- Mutant | -10/Materials Mutant | -10/Mines Mutant | -10/Exiles Mutant | -9/Mines Skirmisher | -8/Materials Resources | -11 -10 -10 -10 -9 -8 ----------- Run | Yrd Mat Min Exi Min Mat Matter Collected 1235 | 427 218 88 97 200 205 Remotely . | . . . . . . Salvage Created 1110 | 231 354 47 . 288 190 Parts 63 | 20 22 1 . 17 3 Haulers Intercepted 1 | . 1 . . . . Recyclers Shooed 3 | 2 1 . . . . Parts Field Recycled . | . . . . . . Retrieved Matter . | . . . . . . Parts Self-Destructed . | . . . . . . Prevented . | . . . . . . Kills | -11 -10 -10 -10 -9 -8 ------- Run | Yrd Mat Min Exi Min Mat Combat Hostiles Destroyed 20 | . 6 3 . 7 4 Guns 15 | . 5 3 . 7 . Cannons 3 | . . . . . 3 Classes Destroyed 9 | 3 4 . . 1 1 Worker 4 | 2 1 . . 1 . Builder 1 | . . . . 1 . Tunneler 5 | 5 . . . . . Hauler 1 | . 1 . . . . Recycler 2 | 1 1 . . . . Watcher 2 | . 2 . . . . Swarmer 9 | . 3 3 . 3 . Grunt 10 | . 3 . . 4 3 Sentry 1 | . . . . . 1 Best Kill Streak 6 | 6 5 3 . 2 3 Combat Bots Only 3 | . 3 3 . 2 3 Max Kills in Single Turn 2 | 1 2 1 . 1 1 Gunslinging . | . . . . . . Exploded . | . . . . . . Melee . | . . . . . . Uniques/NPCs Destroyed . | . . . . . . Combat | -11 -10 -10 -10 -9 -8 -------- Run | Yrd Mat Min Exi Min Mat Hostile Shots Fired 164 | . 29 28 . 53 54 Missed 35 | . 5 7 . 10 13 Hits 129 | . 24 21 . 43 41 Projectile 129 | . 24 21 . 43 41 Critical Strikes 1 | . . . . . 1 Damage Taken 1524 | . 274 176 . 423 651 Core 270 | . 29 48 . 85 108 Absorbed by Shields . | . . . . . . Core Remaining (%) 67 | 100 . . . 35 . Volleys Fired 114 | 22 23 9 1 48 11 Largest 3 | 2 2 2 2 2 3 Hottest 195 | 70 112 112 112 112 195 Shots Fired 206 | 44 46 18 2 69 27 Gun 184 | 44 46 18 2 69 5 Cannon 22 | . . . . . 22 Launcher . | . . . . . . Special . | . . . . . . Kinetic 27 | 22 . . . . 5 Thermal 179 | 22 46 18 2 69 22 Explosive . | . . . . . . Electromagnetic . | . . . . . . Robot Hit Streak 8 | 5 8 4 . 7 4 Robot Miss Streak 5 | 1 5 2 . 4 2 Penetration Max . | . . . . . . Secondary Targets 2 | . . . . 2 . Max Gunslinging Chain 1 | . . . . 1 . Shots Hit Robots 115 | 30 23 9 . 35 18 Core Hits 47 | 9 12 3 . 15 8 Critical Kills 1 | . . . . . 1 Critical Parts Destroyed . | . . . . . . Critical Strikes 12 | 1 2 4 . 4 1 Burn 11 | 1 2 4 . 4 . Meltdown 1 | . . . . . 1 Melee Attacks . | . . . . . . Impact . | . . . . . . Slashing . | . . . . . . Piercing . | . . . . . . Sneak Attacks . | . . . . . . Combat Hostiles . | . . . . . . Follow-up Attacks . | . . . . . . Damage Inflicted 2006 | 390 377 177 . 532 530 Guns 1505 | 390 377 177 . 518 43 Cannons 487 | . . . . . 487 Explosions . | . . . . . . Melee . | . . . . . . Ramming 14 | . . . . 14 . Kinetic 284 | 200 . . . . 84 Thermal 1708 | 190 377 177 . 518 446 Explosive . | . . . . . . Electromagnetic . | . . . . . . Impact . | . . . . . . Slashing . | . . . . . . Piercing . | . . . . . . Highest Corruption . | . . . . . . Average Corruption . | . . . . . . Corruption Purged . | . . . . . . Corruption Blocked . | . . . . . . Overload Shots . | . . . . . . Overflow Damage . | . . . . . . Projectiles . | . . . . . . Explosions . | . . . . . . Melee . | . . . . . . Knockbacks . | . . . . . . Impact . | . . . . . . Kinetic . | . . . . . . Secondary . | . . . . . . Self-Inflicted Damage . | . . . . . . Shots . | . . . . . . Rammed . | . . . . . . Targets Rammed 5 | . . . . 5 . Kicked 5 | . . . . 5 . Crushed . | . . . . . . Highest Temperature 471 | 72 471 341 51 426 344 Average Temperature 153 | 25 178 191 29 169 169 Received Heat Transfer 555 | . 117 . . 141 297 Effects 19 | . 8 1 . 10 . Shutdowns 5 | . 2 1 . 2 . Energy Bleed 4 | . 3 . . 1 . Interference 5 | . . . . 5 . Matter Decay 2 | . . . . 2 . Short Circuit 1 | . 1 . . . . Damage (minor) 2 | . 2 . . . . Siege Activations . | . . . . . . Martial Activations . | . . . . . . Shielding Activations . | . . . . . . Robots Disrupted . | . . . . . . Combat Hostiles . | . . . . . . Robots Corrupted . | . . . . . . Combat Hostiles . | . . . . . . Parts Fried . | . . . . . . Impact Corruptions . | . . . . . . Robots Melted 2 | . 1 . . . 1 Combat Hostiles 2 | . 1 . . . 1 Parts Melted 10 | . . 2 . 4 4 Heat Transferred 4773 | 629 1110 740 . 1628 666 Parts Sabotaged . | . . . . . . Parts Stolen . | . . . . . . Parts Stripped . | . . . . . . Power Chain Reactions . | . . . . . . Alert | -11 -10 -10 -10 -9 -8 ------- Run | Yrd Mat Min Exi Min Mat Maximum Alert Level . | . . . . . . Low Security (%) 100 | 100 100 100 . 100 100 Level 1 . | . . . . . . Level 2 . | . . . . . . Level 3 . | . . . . . . Level 4 . | . . . . . . Level 5 . | . . . . . . High Security . | . . . . . . Max Security . | . . . . . . Peak Influence 131 | 20 131 82 . 80 55 Initial 22 | . . 22 . . . Average 18 | 2 58 32 . 10 7 Influence Increases 661 | 40 206 72 . 225 118 Destroy 0b10 Robot/C 400 | . 120 60 . 140 80 Destroy 0b10 Robot/NC 75 | 40 25 . . 10 . Destroy Leader 86 | . 26 10 . 30 20 Successful Hack 7 | . 4 2 . . 1 Disable Machine 45 | . . . . 30 15 Destroy Structure 3 | . 1 . . . 2 Lose Combat Pursuer 45 | . 30 . . 15 . Influence Decreases 661 | 40 149 129 . 225 118 Entered New Map 35 | . . 35 . . . Time Decay 586 | 40 149 94 . 215 88 Lost Part 40 | . . . . 10 30 Squads Dispatched 3 | . 2 . . . 1 Investigation . | . . . . . . Extermination . | . . . . . . Reinforcement 3 | . 2 . . . 1 Assault . | . . . . . . Garrison . | . . . . . . Intercept . | . . . . . . Searches Triggered . | . . . . . . Construction Impeded . | . . . . . . Haulers Reinforced . | . . . . . . Active Scanning Responses . | . . . . . . Cargo Convoy Interrupts . | . . . . . . Stealth | -11 -10 -10 -10 -9 -8 --------- Run | Yrd Mat Min Exi Min Mat Distress Signals 3 | . 2 . . . 1 Communications Jammed . | . . . . . . Distress Signals . | . . . . . . Times Spotted 37 | . 14 3 . 9 11 Peak Tracking Total 6 | . 6 3 . 4 6 Tactical Retreats 2 | . 1 . . 1 . Traps | -11 -10 -10 -10 -9 -8 ------- Run | Yrd Mat Min Exi Min Mat Traps Triggered 1 | . 1 . . . . Indirectly . | . . . . . . Trap Hack Attempts . | . . . . . . Triggered . | . . . . . . Disarmed . | . . . . . . Reprogrammed . | . . . . . . Reused . | . . . . . . Traps Extracted . | . . . . . . Installed . | . . . . . . Triggered . | . . . . . . Machines | -11 -10 -10 -10 -9 -8 ---------- Run | Yrd Mat Min Exi Min Mat Machines Disabled 5 | . 2 . . 2 1 Max in Single Turn 2 | . 2 . . 1 1 Machines Repaired . | . . . . . . Machines Dismantled . | . . . . . . Machines Sabotaged . | . . . . . . Overloaded Fab Kills . | . . . . . . Hacking | -11 -10 -10 -10 -9 -8 --------- Run | Yrd Mat Min Exi Min Mat Machines Accessed 7 | . 1 1 4 . 1 Terminals 2 | . 1 1 . . . Fabricators . | . . . . . . Repair Stations . | . . . . . . Recycling Units . | . . . . . . Scanalyzers 1 | . . . . . 1 Garrison Access . | . . . . . . Total Hacks 55 | . 2 2 49 . 2 Successful 54 | . 1 2 49 . 2 Failed 1 | . 1 . . . . Catastrophic . | . . . . . . Database Lockouts . | . . . . . . Manual . | . . . . . . Terminals 4 | . 2 2 . . . Fabricators . | . . . . . . Repair Stations . | . . . . . . Recycling Units . | . . . . . . Scanalyzers 2 | . . . . . 2 Garrison Access . | . . . . . . Terminal Hacks 52 | . 1 2 49 . . Record 50 | . . 1 49 . . Emergency Access Points 1 | . 1 . . . . Dispatch Records 1 | . . 1 . . . Fabricator Hacks . | . . . . . . Repair Station Hacks . | . . . . . . Recycling Unit Hacks . | . . . . . . Scanalyzer 2 | . . . . . 2 Insert Component 1 | . . . . . 1 Analyze 1 | . . . . . 1 Garrison Access Hacks . | . . . . . . Unauthorized Hacks . | . . . . . . Terminals . | . . . . . . Fabricators . | . . . . . . Repair Stations . | . . . . . . Recycling Units . | . . . . . . Scanalyzers . | . . . . . . Garrison Access . | . . . . . . Data Cores Recovered . | . . . . . . Used . | . . . . . . Hacking Detections 2 | . 1 . . . 1 Full Trace Events . | . . . . . . Feedback Events . | . . . . . . Feedback Blocked . | . . . . . . Robot Schematics Acquired . | . . . . . . Robots Built . | . . . . . . Authchips . | . . . . . . Time . | . . . . . . Total Robot Build Rating . | . . . . . . Part Schematics Acquired 1 | . . . . . 1 Parts Built . | . . . . . . Authchips . | . . . . . . Time . | . . . . . . Total Part Build Rating . | . . . . . . Parts Repaired . | . . . . . . Time . | . . . . . . Parts Recycled . | . . . . . . Recycled Matter . | . . . . . . Retrieved Matter . | . . . . . . Retrieved Components . | . . . . . . Parts Scanalyzed 1 | . . . . . 1 Part Schematics Acquired 1 | . . . . . 1 Parts Damaged 1 | . . . . . 1 Bothacking | -11 -10 -10 -10 -9 -8 ------------ Run | Yrd Mat Min Exi Min Mat Used RIF Installer . | . . . . . . Robots Hacked . | . . . . . . Non-combat . | . . . . . . Combat . | . . . . . . Robot Hacks Applied . | . . . . . . Relay Couplers Released . | . . . . . . Fabnet Peak Effective % . | . . . . . . Robots Rewired . | . . . . . . Allies Hacked . | . . . . . . Hacks Repelled . | . . . . . . Allies | -11 -10 -10 -10 -9 -8 -------- Run | Yrd Mat Min Exi Min Mat Total Allies . | . . . . . . Largest Group . | . . . . . . Highest-Rated Group . | . . . . . . Highest-Rated Ally . | . . . . . . Total Orders . | . . . . . . Ally Attacks . | . . . . . . Total Damage . | . . . . . . Kills . | . . . . . . Allies Corrupted . | . . . . . . Allies Melted . | . . . . . . Intel | -11 -10 -10 -10 -9 -8 ------- Run | Yrd Mat Min Exi Min Mat Active Infowar (turns) 4363 | 99 283 257 1751 1203 770 Sensors 4158 | . 177 257 1751 1203 770 Terrain 205 | 99 106 . . . . Robot Analysis Total . | . . . . . . Derelict Logs Recovered 1 | . . 1 . . . Drone Launches . | . . . . . . Drone Recoveries . | . . . . . . Exploration | -11 -10 -10 -10 -9 -8 ------------- Run | Yrd Mat Min Exi Min Mat Turns Passed 4717 | 207 462 257 1751 1270 770 Spaces Moved 1750 | 106 207 95 726 477 139 Core 33 | 22 1 . . . 10 Treads 856 | . 35 89 726 6 . Legs 846 | 84 171 6 . 471 114 Wheels . | . . . . . . Hover 15 | . . . . . 15 Flight . | . . . . . . Fastest Speed 50 | 50 120 240 240 190 260 Average Speed 243 | 112 177 241 240 235 488 Slowest Speed 1100 | 150 260 260 240 260 1100 Overloaded Moves . | . . . . . . Propulsion Burnouts . | . . . . . . Robots Hopped . | . . . . . . Potential Cave-ins . | . . . . . . Cave-ins Triggered . | . . . . . . Exploration Rate (%) 42 | 5 42 27 93 79 11 Regions Visited 5 Branch Regions 3 Pre-discovered Areas 1 | . . . 1 . . Known Exits Taken . | . . . . . . Unknown Exits Taken 5 | 1 1 1 1 1 . Scrap Searched 1 | . . 1 . . . Spaces Dug . | . . . . . . Terrain Destroyed 1 | . . . . . 1 Melee . | . . . . . . Projectile 1 | . . . . . 1 AOE . | . . . . . . Terrain Rammed . | . . . . . . Walls Destroyed . | . . . . . . Machines Disabled . | . . . . . . Actions | -11 -10 -10 -10 -9 -8 --------- Run | Yrd Mat Min Exi Min Mat Total 2009 | 149 259 106 734 554 207 Wait 42 | . 3 . . 17 22 Move 1745 | 105 206 94 725 476 139 Hop . | . . . . . . Pick Up 53 | 14 8 1 4 2 24 Fast Attach 10 | 2 6 . . 1 1 Attach 11 | 5 . . . 1 5 Detach 1 | . . . . . 1 Swap 8 | . 3 1 . 1 3 Drop 17 | 1 10 1 1 3 1 Fire 114 | 22 23 9 1 48 11 Melee . | . . . . . . Ram . | . . . . . . Kick 5 | . . . . 5 . Crush . | . . . . . . Escape Stasis . | . . . . . . Rewire 3 | . . . 3 . . Trap . | . . . . . . Miscellaneous . | . . . . . . Route ------- -11/Scrapyard -10/Materials -10/Mines -10/Exiles (discovered 2 exits: [*Min x2]) -9/Mines -8/Materials (discovered 1 exit: Fac) History --------- Turn | Location | Event 12 | -11/Scrapyard | Discovered new exit (range 16) 208 | -11/Scrapyard | Entered Materials 343 | -10/Materials | Build established: Mutant 604 | -10/Materials | Discovered new exit (range 12) 670 | -10/Materials | Entered Mines 792 | -10/Mines | Learned 2 Materials zone layouts 915 | -10/Mines | Deemed a non-threat by the Exiles lab entrance 918 | -10/Mines | Discovered new exit (range 5) 927 | -10/Mines | Entered Exiles 987 | -10/Exiles | Met 8R-AWN 1026 | -10/Exiles | Met EX-HEX 1265 | -10/Exiles | Met EX-DEC 1311 | -10/Exiles | Visited The Gauntlet 1634 | -10/Exiles | Learned location of Zion (-7) 1828 | -10/Exiles | Discovered new exit (range 14) 2008 | -10/Exiles | Met EX-BIN 2361 | -10/Exiles | Discovered new exit (range 14) 2678 | -10/Exiles | Entered Mines 2695 | -9/Mines | Core integrity fell below 50% 3935 | -9/Mines | Discovered new exit (range 6) 3948 | -9/Mines | Entered Materials 3948 | -8/Materials | Evolved 4 slots: Power x1, Propulsion x1, Utility x1, Weapon x1 3949 | -8/Materials | Identified exit to Factory 4262 | -8/Materials | Build established: Skirmisher 4586 | -8/Materials | Lost 3 parts (2p1n) 4718 | -8/Materials | Self-destructed Last Messages --------------- G-47 Trooper suffers critical hit (Meltdown). Aluminum Leg melted. Particle Gun melted. Lgt. Nuclear Core melted. K-01 Serf collects debris. Connecting with Scanalyzer... Current location identified: Materials Connecting with Scanalyzer... >>Insert(Airjet) Scanning Airjet... Ready to analyze. >>Scanalyze Scanning: Airjet... Schematic downloaded. Acquired 39 matter. W-25 Informer sends out distress signal. Acquired 4 matter. Critical hit (Burn: +37). Penetrated by Slug. Lgt. Humpback destroyed. Map ----- +----------------------------------------------------+ | ????????????????????????????????????????? | | ????????????????????????????????????????? | | ????????????????????????????????????????? | | ????????????????????????????????????????? | | ????????????????????????????????????????? | | ????????????????????????????????????????? | | ????????????????????????????????????????? | | ????????????????????????????????????????? | | ????????????????????????????????????????? | | ????????????????????????????????????????? | | ????????????????????????????????????????? | | ????????????????????????????????????????? | | ??????????????? T???????????????????????? | | ???????????????""???????????????????????? | | ??????????????? ???????????????????????? | | ??????????????? !???????????????????????? | | ???????????????#a???????????????????????? | | ???????????????# #??????????????????????? | | ??????????????## ###????????????????????? | | ??????????????#gkh ????????????????????? | | ??????????????# Y ?????????????????????? | | ??????????????+ g %?????????????????????? | | ??????????????#[![#?????????????????????? | | ??????????????#!!%#?????????????????????? | | ????# #!!/#??# #????????????????? | | ????# #w@!#??# #????????????????? | | ????###########![!#??# #????????????????? | | ????# "" ##!/!##?# #????????????????? | | ????# ""S ##!/!##?# #????????????????? | | ????# "" # ###+##???????????????? | | ????# # # ???????????????? | | ????# + # ???????????????? | | ????# """ # # ???????????????? | | ????# """ # # ???????????????? | | ????# """ ## ## ????##?????????? | | ????# ## ## ??? #?????????? | | ????########### ## ?? ???????????? | | ????# # ## ? ????????????? | | ????#"" # #######/###???????????? | | ????#"" """ # #???????????? | | ????#"T """ + #???????????? | | ????#"" """ # #???????????? | | ????#"" # ##+###### #???????????? | | ????# # # ## #???????????? | | ????# # # ## #####???????? | | ????########### # ## #???????? | | ?????########## # ## #???????? | | ?????# # # [[ ## #???????? | | ?????# # # [[ ## #???????? | | ?????# # ######### #???# #?? | +----------------------------------------------------+ Best States ------------- Heat Dissipation 31 Energy Generation 23 Energy Capacity 220 Matter Stores 300 Matter Capacity 300 Sight Range 16 Robot Scan Range 14 Terrain Scan Range 16 Terrain Scan Density 10 Armor Coverage 225 Evasion (%) 55 Recoil Reduction 2 Item Schematics ----------------- Airjet | -8/Materials | Scanalyzed Robot Schematics ------------------ None Fabricated ------------ Nothing Repaired ---------- Nothing Alien Tech Used ----------------- None Achievements -------------- None Challenges ------------ None Game ------ Seed GravityVortexBlaster Manual? 0 Play Time 00:32:17 Cumulative 25.3 hours Start 2025.09.01 @ 15:19:23 End 2025.09.01 @ 17:41:31 Sessions 1 Manual Loads 0 Difficulty Rogue Special Mode None Game No. 18 Rogue 18 Adventurer 0 Explorer 0 Win Type - Total 0 Types 0/0/0/0/0/0/0/0/0/0 Lore% 13 Gallery% 26 Achievement% 25 Wizard Run 0 Options --------- Layout 0 ASCII 0 Keyboard 0 Movement Arrows Keybinds 0 Fullscreen 1 Font 12/Smallcaps Map View 38x28 Zoom Use 97% Tactical HUD 0 Map Filters NONE Filters NONE Steam SD RUN: c0e5de66-98b1-4cc9-9be8-7d9eb438fbf1